bitfinex-derivatives/quotes_BNBF0:USTF0_20250425
["timestamp","ask_amount","ask_price","bid_price","bid_amount"]
[1745565671684,2.14006587,609.82,607.93,5.143]
[1745565671984,2.14006587,609.56,607.93,5.143]
[1745565675087,2.14006587,609.6,607.93,5.143]
[1745565676990,2.14006587,609.53,607.93,5.143]
[1745565677989,0.28616421,609.52,607.93,5.143]
[1745565679088,2.14006587,609.48,607.93,5.143]
[1745565681993,0.28617009,609.47,607.93,5.143]
[1745565683796,2.14006587,609.49,607.93,5.143]
[1745565684095,0.28615009,609.46,607.93,5.143]
[1745565684498,2.14006587,609.43,607.93,5.143]
[1745565686997,0.28615009,609.42,607.93,5.143]
[1745565688492,2.14006587,609.33,607.93,5.143]
[1745565690097,0.28616656,609.32,607.93,5.143]
[1745565690497,2.14006587,609.12,607.93,5.143]
[1745565693198,0.28616656,609.32,607.93,5.143]
[1745565695801,2.14006587,609.36,607.93,5.143]
[1745565696001,2.14006587,609.59,607.93,5.143]
[1745565697000,0.28616656,609.58,607.93,5.143]
[1745565698801,2.14006587,609.65,607.93,5.143]
[1745565698997,0.28616656,609.57,607.93,5.143]
[1745565699198,2.14006587,609.65,607.93,5.143]
[1745565700100,0.28616185,609.64,607.93,5.143]
[1745565700302,2.14006587,609.54,607.93,5.143]
[1745565703307,0.28616185,609.64,607.93,5.143]
[1745565703308,2.14006587,609.51,607.93,5.143]
[1745565705008,0.28618186,609.5,607.93,5.143]
[1745565705211,2.14006587,609.37,607.93,5.143]
[1745565707805,2.14006587,609.41,607.93,5.143]
[1745565708109,0.28619716,609.36,607.93,5.143]
[1745565710709,2.14006587,609.57,607.93,5.143]
[1745565711007,0.28619245,609.35,607.93,5.143]
[1745565711201,2.14006587,609.57,607.93,5.143]
[1745565712912,2.14006587,609.61,607.93,5.143]
[1745565713511,0.28616891,609.6,607.93,5.143]
[1745565715514,2.42623478,609.6,607.93,5.143]
[1745565716817,2.14006587,609.6,607.93,5.143]
[1745565717117,0.28617009,609.59,607.93,5.143]
[1745565717321,2.14006587,609.54,607.93,5.143]
[1745565718819,0.28617009,609.59,607.93,5.143]
[1745565719714,2.14006587,609.68,607.93,5.143]
[1745565720018,0.28616068,609.58,607.93,5.143]
[1745565720218,2.14006587,609.68,607.93,5.143]
[1745565720918,2.14006587,609.7,607.93,5.143]
[1745565721117,0.28616068,609.67,607.93,5.143]
[1745565722817,2.14006587,609.71,607.93,5.143]
[1745565723016,0.28617009,609.66,607.93,5.143]
[1745565724019,2.42623596,609.66,607.93,5.143]
[1745565725821,2.14006587,609.66,607.93,5.143]
[1745565726121,2.14006587,609.56,607.93,5.143]
[1745565729022,0.28617715,609.55,607.93,5.143]
[1745565729722,2.14006587,609.49,607.93,5.143]
[1745565732022,0.28618539,609.48,607.93,5.143]
[1745565732924,2.14006587,609.38,607.93,5.143]
[1745565734920,2.14006587,609.43,607.93,5.143]
[1745565735121,0.28619598,609.37,607.93,5.143]
[1745565737729,2.14006587,609.43,607.93,5.143]
[1745565737931,2.14006587,609.38,607.93,5.143]
[1745565739131,0.28619598,609.37,607.93,5.143]
[1745565740333,2.14006587,609.29,607.93,5.143]
[1745565742232,2.14006587,609.35,607.93,5.143]
[1745565744232,2.14006587,609.33,607.93,5.143]
[1745565745028,0.28621128,609.32,607.93,5.143]
[1745565746833,2.14006587,609.33,607.93,5.143]
[1745565747029,2.14006587,609.24,607.93,5.143]
[1745565748032,0.28622187,609.23,607.93,5.143]
[1745565749835,2.14006587,609.29,607.93,5.143]
[1745565751135,0.28621834,609.28,607.93,5.143]
[1745565752737,2.14006587,609.49,607.93,5.143]
[1745565753038,0.2861948,609.27,607.93,5.143]
[1745565753237,2.14006587,609.49,607.93,5.143]
[1745565754039,0.2861948,609.48,607.93,5.143]
[1745565755342,2.14006587,609.38,607.93,5.143]
[1745565756042,0.28621716,609.37,607.93,5.143]
[1745565758944,2.14006587,609.41,607.93,5.143]
[1745565759145,0.28620657,609.36,607.93,5.143]
[1745565761747,2.14006587,609.5,607.93,5.143]
[1745565761948,0.28619598,609.35,607.93,5.143]
[1745565762348,2.14006587,609.48,607.93,5.143]
[1745565763049,0.28619833,609.47,607.93,5.143]
[1745565767751,2.14006587,609.51,607.93,5.143]
[1745565768050,0.28618068,609.46,607.93,5.143]
[1745565770751,2.14006587,609.53,607.93,5.143]
[1745565771057,0.28617833,609.45,607.93,5.143]
[1745565771251,2.14006587,609.53,607.93,5.143]
[1745565771751,2.14006587,609.49,607.93,5.143]
[1745565772155,0.28618303,609.48,607.93,5.143]
[1745565773653,2.14006587,609.35,607.93,5.143]
[1745565774059,0.28619951,609.34,607.93,5.143]
[1745565775960,2.14006587,609.26,607.93,5.143]
[1745565777058,0.28621481,609.25,607.93,5.143]
[1745565779860,2.14006587,609.33,607.93,5.143]
[1745565780861,2.14006587,609.31,607.93,5.143]
[1745565783064,0.28620892,609.3,607.93,5.143]
[1745565785766,2.14006587,609.35,607.93,5.143]
[1745565785968,2.14006587,609.17,607.93,5.143]
[1745565787762,2.14006587,609.2,607.93,5.143]
[1745565789163,0.28621716,609.19,607.93,5.143]
[1745565791871,2.14006587,610.16,607.93,5.143]
[1745565792173,0.28610421,609.18,607.93,5.143]
[1745565792371,2.14006587,610.16,607.93,5.143]
[1745565792772,2.14006587,610.15,607.93,5.143]
[1745565793074,2.42617008,610.15,607.93,5.143]
[1745565794874,2.14006587,610.15,607.93,5.143]
[1745565795477,2.14006587,609.79,607.93,5.143]
[1745565796074,0.28614303,609.78,607.93,5.143]
[1745565797777,2.14006587,609.79,607.93,5.143]
[1745565798081,0.28614303,609.77,607.93,5.143]
[1745565798376,2.14006587,609.38,607.93,5.143]
[1745565801180,2.14006587,609.31,607.93,5.143]
[1745565802275,0.28619951,609.3,607.93,5.143]
[1745565803581,2.42626538,609.3,607.93,5.143]
[1745565803881,2.14006587,609.3,607.93,5.143]
[1745565804080,0.28612421,609.29,607.93,5.143]
[1745565806183,2.14006587,609.14,607.93,5.143]
[1745565808177,0.28621952,609.13,607.93,5.143]
[1745565809781,2.14006587,609.45,607.93,5.143]
[1745565811088,0.28620186,609.44,607.93,5.143]
[1745565812885,2.14006587,609.52,607.93,5.143]
[1745565813188,0.28621952,609.43,607.93,5.143]
[1745565813384,2.14006587,609.52,607.93,5.143]
[1745565814084,0.28621952,609.51,607.93,5.143]
[1745565815292,2.14006587,609.46,607.93,5.143]
[1745565816188,0.28622658,609.45,607.93,5.143]
[1745565818791,2.14006587,609.52,607.93,5.143]
[1745565819091,0.28621952,609.44,607.93,5.143]
[1745565819293,2.14006587,609.52,607.93,5.143]
[1745565820194,0.28620539,609.51,607.93,5.143]
[1745565821394,2.14006587,609.29,607.93,5.143]
[1745565824986,2.14006587,609.22,607.93,5.143]
[1745565826193,0.28622423,609.21,607.93,5.143]
[1745565827888,2.14006587,609.32,607.93,5.143]
[1745565828093,0.28621246,609.2,607.93,5.143]
[1745565828393,2.14006587,609.32,607.93,5.143]
[1745565829094,0.28621246,609.31,607.93,5.143]
[1745565836800,2.14006587,609.44,607.93,5.143]
[1745565837104,0.28620775,609.3,607.93,5.143]
[1745565837505,2.14006587,609.44,607.93,5.143]
[1745565838207,0.28620775,609.43,607.93,5.143]
[1745565839107,2.42627362,609.43,607.93,5.143]
[1745565839809,2.14006587,609.43,607.93,5.143]
[1745565840108,0.28620892,609.42,607.93,5.143]
[1745565841412,2.14006587,609.38,607.93,5.143]
[1745565844211,0.28620539,609.37,607.93,5.143]
[1745565844612,2.14006587,609.36,607.93,5.143]
[1745565846108,0.28621481,609.35,607.93,5.143]
[1745565847516,2.14006587,609.25,607.93,5.143]
[1745565849115,0.28623247,609.24,607.93,5.143]
[1745565851919,2.14006587,609.27,607.93,5.143]
[1745565852216,2.14006587,609.27,607.93,2.482]
[1745565852416,2.14006587,609.24,606.81,1.03729696]
[1745565852616,2.14006587,609.24,606.82,0.30234553]
[1745565853218,0.28637733,609.23,606.83,0.58872283]
[1745565853412,0.28637733,609.23,606.84,0.3023455]
[1745565854717,2.14006587,609.21,606.84,0.3023455]
[1745565857220,0.28637497,609.22,606.84,0.3023455]
[1745565857420,0.28637497,609.22,606.78,0.3023455]
[1745565857619,0.28637497,609.22,606.79,0.3023455]
[1745565857920,2.14006587,609.27,606.8,0.3023455]
[1745565858120,2.14006587,609.27,606.81,0.3023455]
[1745565858420,2.14006587,609.27,606.82,0.3023455]
[1745565858621,2.14006587,609.27,606.78,0.3023455]
[1745565859120,0.28640207,609.26,606.78,0.3023455]
[1745565859420,0.28640207,609.26,606.77,1.03729696]
[1745565860121,1.25120987,608.79,606.71,1.03729696]
[1745565860319,1.25120987,608.79,606.72,0.3024692]
[1745565860916,1.25120987,608.79,606.73,0.30247651]
[1745565861117,1.25120987,608.79,606.72,0.30247651]
[1745565861315,1.25120987,608.79,606.73,0.30247651]
[1745565861618,1.25120987,608.79,606.71,1.03729696]
[1745565862922,1.25120987,608.86,606.68,4.477]
[1745565864219,0.28647516,608.85,606.68,4.477]
[1745565864421,0.28647516,608.85,606.69,0.30243602]
[1745565867116,0.28639147,608.84,606.69,0.30243602]
[1745565869816,1.25120987,609.22,606.69,0.30243602]
[1745565870121,0.28643272,608.83,606.69,0.30243602]
[1745565870419,1.25120987,609.22,606.69,0.30243602]
[1745565870923,1.25120987,609.2,606.69,0.30243602]
[1745565873323,1.25120987,609.15,606.69,0.30243602]
[1745565874126,0.28644804,609.14,606.69,0.30243602]
[1745565875222,0.28644804,609.14,606.7,0.30245713]
[1745565875522,0.28644804,609.14,606.71,0.30245713]
[1745565875726,0.28644804,609.14,606.69,0.30245713]
[1745565875926,1.25120987,609.15,606.68,4.477]
[1745565876227,0.28644804,609.13,606.69,0.30245884]
[1745565876427,1.25120987,608.94,606.69,0.30245884]
[1745565876628,1.25120987,608.94,606.68,4.477]
[1745565876826,1.25120987,608.94,606.69,0.30246004]
[1745565879130,0.2864728,608.93,606.69,0.30246004]
[1745565880132,0.2864728,608.93,606.68,4.477]
[1745565884835,1.25120987,609.24,606.69,0.30247928]
[1745565885135,0.28644687,608.92,606.69,0.30247928]
[1745565885434,1.25120987,609.24,606.69,0.30247928]
[1745565885734,1.25120987,609.24,606.68,3.235]
[1745565886134,0.28647045,609.23,606.68,3.235]
[1745565886531,1.25120987,609.06,606.68,3.235]
[1745565887636,1.25120987,609.06,606.68,4.494]
[1745565889337,1.25120987,608.72,606.68,4.494]
[1745565889638,1.25120987,608.72,606.68,1.259]
[1745565891238,0.2865766,608.71,606.68,1.259]
[1745565893339,0.2865766,608.71,606.68,2.674]
[1745565893943,1.25120987,609.16,606.68,2.674]
[1745565894342,1.25120987,609.06,606.68,2.674]
[1745565895141,0.28652705,609.05,606.68,2.674]
[1745565896840,1.25120987,609.06,606.68,2.674]
[1745565897043,1.25120987,608.65,606.68,2.674]
[1745565898638,1.25120987,608.73,606.68,2.674]
[1745565900144,0.28657542,608.72,606.68,2.674]
[1745565902645,1.25120987,608.69,606.68,2.674]
[1745565905144,0.28657542,608.72,606.68,2.674]
[1745565908847,1.25120987,608.95,606.68,2.674]
[1745565909147,0.28652351,608.71,606.68,2.674]
[1745565909347,1.25120987,608.95,606.68,2.674]
[1745565909847,1.25120987,609.0,606.68,2.674]
[1745565910147,0.28652351,608.94,606.68,2.674]
[1745565913851,0.28652351,608.94,606.68,1.415]
[1745565915252,0.28651526,608.93,606.68,1.415]
[1745565917951,1.25120987,608.88,606.68,1.415]
[1745565919855,1.25120987,608.53,606.68,1.415]
[1745565921154,0.28657306,608.52,606.68,1.415]
[1745565923157,1.25120987,608.43,606.68,1.415]
[1745565925460,0.28657306,608.52,606.68,1.415]
[1745565926860,1.25120987,608.66,606.68,1.415]
[1745565927159,0.28655773,608.51,606.68,1.415]
[1745565927555,1.25120987,608.66,606.68,1.415]
[1745565927860,1.25120987,608.81,606.68,1.415]
[1745565928161,0.28655773,608.65,606.68,1.415]
[1745565928460,1.25120987,608.81,606.68,1.415]
[1745565928661,0.28654003,608.64,606.68,1.415]
[1745565929159,0.28654003,608.63,606.68,1.415]
[1745565929860,1.25120987,608.81,606.68,1.415]
[1745565930161,0.28654003,608.62,606.68,1.415]
[1745565930461,1.25120987,608.82,606.68,1.415]
[1745565931162,0.28650582,608.81,606.69,0.30250343]
[1745565932366,1.25120987,608.76,606.69,0.30250343]
[1745565932564,1.25120987,608.76,606.5,0.30250343]
[1745565934167,0.28653531,608.75,606.5,0.30250343]
[1745565935666,0.28653531,608.75,606.49,1.32383227]
[1745565935969,1.25120987,608.8,606.5,0.30249129]
[1745565936967,2.14006587,609.54,606.5,0.30249129]
[1745565936968,1.25120987,608.88,606.5,0.30249129]
[1745565937167,0.28653059,608.79,606.41,1.03729696]
[1745565937370,0.28653059,608.79,606.49,0.28653059]
[1745565937668,1.25120987,608.88,606.5,0.30248561]
[1745565937865,1.25120987,608.88,606.42,0.30248561]
[1745565938062,1.25120987,608.88,606.43,0.30248561]
[1745565938263,1.25120987,608.88,606.42,0.30248561]
[1745565938565,0.28650464,608.87,606.44,0.28650464]
[1745565938770,0.28650464,608.87,606.45,0.30248561]
[1745565941970,1.25120987,609.17,606.45,0.30248561]
[1745565942167,1.25120987,609.17,606.46,0.30248561]
[1745565942372,1.25120987,609.09,606.47,0.30248561]
[1745565942675,1.25120987,609.09,606.48,0.30248561]
[1745565942875,1.25120987,609.09,606.42,0.30248561]
[1745565943177,0.28647988,609.08,606.46,0.28647988]
[1745565943473,0.28647988,609.08,606.47,0.30248561]
[1745565944578,1.25120987,608.91,606.5,1.03729696]
[1745565944776,1.25120987,608.91,606.51,0.30248561]
[1745565944969,1.25120987,608.91,606.52,0.30243072]
[1745565945276,0.28647634,608.9,606.53,0.30243072]
[1745565945478,0.28647634,608.9,606.51,0.30243072]
[1745565945669,0.28647634,608.9,606.5,1.03729696]
[1745565945670,0.28647634,608.9,606.52,0.30243072]
[1745565945872,0.28647634,608.9,606.51,0.30243072]
[1745565947579,1.25120987,608.86,606.56,1.03729696]
[1745565947874,1.25120987,608.86,606.57,0.30243072]
[1745565948381,0.28646101,608.85,606.57,0.30243072]
[1745565949483,0.28646101,608.85,606.56,1.03729696]
[1745565949681,0.28646101,608.85,606.57,0.30237435]
[1745565949877,0.28646101,608.85,606.58,0.30237726]
[1745565950076,0.28646101,608.85,606.53,0.30237726]
[1745565950277,0.28646101,608.85,606.54,0.30237726]
[1745565950584,0.28646101,608.85,606.55,0.30237726]
[1745565950782,0.28646101,608.85,606.53,0.30237726]
[1745565950982,0.28646101,608.85,606.54,0.30237726]
[1745565951283,0.28646101,608.85,606.55,0.30237726]
[1745565951481,0.28646101,608.85,606.53,0.30237726]
[1745565951782,0.28646101,608.85,606.54,0.30237726]
[1745565952082,0.28646101,608.85,606.53,0.30237726]
[1745565952285,0.28646101,608.85,606.54,0.30237726]
[1745565952581,0.28646101,608.85,606.55,0.30237726]
[1745565952782,0.28646101,608.85,606.52,0.30237726]
[1745565952983,0.28646101,608.85,606.53,0.30237726]
[1745565953183,0.28646101,608.85,606.54,0.30237726]
[1745565953483,0.28646101,608.85,606.55,0.30237726]
[1745565953682,0.28646101,608.85,606.52,0.30237726]
[1745565953878,2.14006587,609.47,606.53,0.30237726]
[1745565954082,2.14006587,609.47,606.5,0.30237726]
[1745565954279,0.28637615,608.84,606.51,0.58875341]
[1745565954478,2.14006587,609.47,606.52,0.30237726]
[1745565954779,2.14006587,609.48,606.54,1.03729696]
[1745565954983,2.14006587,609.48,606.55,0.30237726]
[1745565955186,0.28637615,609.46,606.55,0.30237726]
[1745565955379,0.28637615,609.46,606.56,0.30237726]
[1745565955684,0.28637615,609.46,606.57,0.30237726]
[1745565955884,0.28637615,609.46,606.55,0.30237726]
[1745565956887,2.14006587,609.48,606.55,0.30237726]
[1745565957182,0.28637144,609.45,606.54,1.03729696]
[1745565957385,0.28637144,609.45,606.56,0.30234435]
[1745565957581,0.28637144,609.45,606.57,0.30234435]
[1745565957786,0.28637144,609.45,606.58,0.30234435]
[1745565957986,0.28637144,609.45,606.59,0.30234435]
[1745565958181,0.28637144,609.45,606.54,1.03729696]
[1745565958182,0.28637144,609.45,606.6,0.30234435]
[1745565958382,0.28637144,609.45,606.61,0.30234435]
[1745565958588,0.28637144,609.45,606.62,0.30234435]
[1745565958784,0.28637144,609.45,606.55,0.30234435]
[1745565958982,0.28637144,609.45,606.56,0.30234435]
[1745565959186,0.28637144,609.45,606.57,0.30234435]
[1745565959383,0.28637144,609.45,606.55,0.30234435]
[1745565959586,0.28637144,609.45,606.56,0.30234435]
[1745565959882,2.14006587,609.54,606.57,0.30234435]
[1745565960087,2.14006587,609.54,606.55,0.30234435]
[1745565960283,2.14006587,609.54,606.58,0.30234435]
[1745565960486,2.14006587,609.54,606.59,0.30234435]
[1745565960688,2.14006587,609.54,606.55,0.30234435]
[1745565960889,2.14006587,609.54,606.56,0.30234435]
[1745565961081,2.14006587,609.54,606.55,0.30234435]
[1745565961285,0.28636437,609.53,606.56,0.30234435]
[1745565961488,0.28636437,609.53,606.57,0.30234435]
[1745565961689,0.28636437,609.53,606.55,0.30234435]
[1745565961990,0.28636437,609.53,606.56,0.30234435]
[1745565962190,0.28636437,609.53,606.55,0.30234435]
[1745565962486,0.28636437,609.53,606.56,0.30234435]
[1745565962690,0.28636437,609.53,606.55,0.30234435]
[1745565962891,2.14006587,609.67,606.56,0.30233127]
[1745565963186,2.14006587,609.67,606.57,0.30233127]
[1745565963385,0.28634905,609.52,606.54,0.58868032]
[1745565963586,2.14006587,609.67,606.55,0.30233127]
[1745565963784,2.14006587,609.69,606.55,0.30233127]
[1745565964190,0.28634669,609.68,606.55,0.30233127]
[1745565964491,0.28634669,609.68,606.56,0.30233127]
[1745565964691,0.28634669,609.68,606.57,0.30233127]
[1745565964890,0.28634669,609.68,606.55,0.30233127]
[1745565965189,0.28634669,609.68,606.56,0.30233127]
[1745565965389,0.28634669,609.68,606.55,0.30233127]
[1745565965589,0.28634669,609.68,606.56,1.74833127]
[1745565965784,0.28634669,609.68,606.56,1.446]
[1745565965989,0.28634669,609.68,606.57,0.30232318]
[1745565966288,2.14006587,609.54,606.64,1.03729696]
[1745565966491,2.14006587,609.54,606.65,0.30232318]
[1745565968893,2.14006587,609.64,606.65,1.33962014]
[1745565969090,2.14006587,609.64,606.66,0.30232318]
[1745565970193,0.28631136,609.63,606.66,0.30232318]
[1745565970692,0.28631136,609.63,606.67,0.30232318]
[1745565970890,0.28631136,609.63,606.66,0.30232318]
[1745565971088,0.28631136,609.63,606.67,0.30232318]
[1745565971289,0.28631136,609.63,606.66,0.30232318]
[1745565971492,0.28631136,609.63,606.67,1.33962014]
[1745565971689,0.28631136,609.63,606.68,0.30232318]
[1745565973393,0.28631136,609.63,606.69,0.30232318]
[1745565973594,0.28631136,609.63,606.68,0.30232318]
[1745565973793,0.28631136,609.63,606.69,0.30232318]
[1745565974096,2.14006587,609.59,606.81,1.03729696]
[1745565974292,2.14006587,609.59,606.82,0.30232318]
[1745565975188,0.28628898,609.58,606.82,0.30232318]
[1745565976497,0.28628898,609.58,606.79,1.03729696]
[1745565976694,0.28628898,609.58,606.83,1.308]
[1745565976894,0.28628898,609.58,606.84,0.30227972]
[1745565977894,2.14006587,609.63,606.84,0.30227972]
[1745565978098,2.14006587,609.63,606.85,0.30228006]
[1745565978296,2.14006587,609.63,606.84,0.30228006]
[1745565979196,0.28628191,609.62,606.84,0.30228006]
[1745565980900,2.14006587,609.77,606.84,0.30228006]
[1745565981199,0.28626543,609.61,606.84,0.30228006]
[1745565981397,2.14006587,609.77,606.84,0.30228006]
[1745565982201,0.28625836,609.76,606.84,0.30228006]
[1745565982597,2.14006587,609.72,606.84,0.30228006]
[1745565982800,2.14006587,609.72,606.85,1.917]
[1745565983001,2.14006587,609.72,606.86,0.30228006]
[1745565984304,0.28625483,609.71,606.86,0.30228006]
[1745565985601,0.28625483,609.71,606.85,1.917]
[1745565985800,0.28625483,609.71,606.86,0.30225049]
[1745565986901,2.14006587,609.78,606.86,0.30225049]
[1745565987101,2.14006587,609.78,606.85,1.917]
[1745565987304,2.14006587,609.78,606.86,0.30224902]
[1745565988204,0.28624777,609.77,606.86,0.30224902]
[1745565988605,0.28624777,609.77,606.85,1.917]
[1745565988799,0.28624777,609.77,606.86,0.30224901]
[1745565989905,2.14006587,609.81,606.86,0.30224901]
[1745565990209,2.14006587,609.81,606.87,0.30224928]
[1745565990404,2.14006587,609.81,606.88,0.30224928]
[1745565990605,2.14006587,609.81,606.86,0.30224928]
[1745565991200,0.28624424,609.8,606.86,0.30224928]
[1745565992907,2.14006587,609.96,606.86,0.30224928]
[1745565993206,2.14006587,609.96,606.85,1.917]
[1745565993408,2.14006587,609.73,606.86,0.30224824]
[1745565994207,0.28625366,609.72,606.86,0.30224824]
[1745565995207,2.14006587,609.71,606.86,0.30224824]
[1745565995712,2.14006587,609.71,606.87,1.453]
[1745565995908,2.14006587,609.71,606.88,0.30224824]
[1745565996213,0.28625366,609.7,606.88,0.30224824]
[1745565998115,0.28625366,609.7,606.89,1.854]
[1745565998314,0.28625366,609.7,606.9,0.30224824]
[1745565999014,2.14006587,609.79,606.9,0.30224824]
[1745565999214,2.14006587,609.79,606.89,1.854]
[1745565999414,2.14006587,609.79,606.9,0.302238]
[1745566000314,2.14006587,609.51,606.98,1.03729696]
[1745566000515,2.14006587,609.51,606.99,0.302238]
[1745566000715,2.14006587,609.51,606.98,1.03729696]
[1745566000915,2.14006587,609.51,606.99,0.30221026]
[1745566002216,0.28624541,609.5,606.99,0.30221026]
[1745566003116,0.28624541,609.5,606.98,0.30221026]
[1745566004918,2.14006587,609.71,606.98,0.30221026]
[1745566005227,0.28621599,609.49,607.05,1.03729696]
[1745566005423,0.28621599,609.49,607.06,0.30219326]
[1745566005619,2.14006587,609.62,607.06,0.30219326]
[1745566006422,0.28621716,609.61,607.06,0.30219326]
[1745566007925,2.14006587,609.62,607.06,0.30219326]
[1745566008225,0.28621716,609.6,607.06,0.30219326]
[1745566008524,0.28621716,609.6,607.07,0.30219095]
[1745566008824,0.28621716,609.6,607.08,0.30219095]
[1745566009023,0.28621716,609.6,607.01,0.30219095]
[1745566009323,0.28621716,609.6,607.02,0.30219095]
[1745566009520,0.28621716,609.6,607.01,0.30219095]
[1745566009825,0.28621716,609.6,607.0,1.03729696]
[1745566010124,0.28621716,609.6,607.01,0.30220113]
[1745566010526,0.28621716,609.6,607.03,1.03729696]
[1745566010725,0.28621716,609.6,607.04,0.30220113]
[1745566010925,2.14006587,609.67,607.04,0.30220113]
[1745566011327,0.28621363,609.59,607.04,0.30220113]
[1745566011520,2.14006587,609.67,607.04,0.30220113]
[1745566012227,0.28621363,609.66,607.04,0.30220113]
[1745566013527,0.28621363,609.66,607.04,1.67320113]
[1745566013721,0.28621363,609.66,607.05,0.30220113]
[1745566013927,2.14006587,609.69,607.05,0.30220113]
[1745566014228,0.28619598,609.65,607.05,0.30220113]
[1745566014528,0.28619598,609.65,607.04,1.371]
[1745566014724,0.28619598,609.65,607.05,0.30216451]
[1745566016830,0.28619598,609.65,607.09,1.03729696]
[1745566017031,0.28619598,609.65,607.1,0.30216451]
[1745566019134,0.28619598,609.65,607.04,1.371]
[1745566019333,0.28619598,609.65,607.05,0.3021997]
[1745566019935,2.14006587,609.95,607.05,0.3021997]
[1745566020234,0.28618656,609.64,607.05,0.3021997]
[1745566020427,2.14006587,609.95,607.05,0.3021997]
[1745566021230,0.28618656,609.94,607.05,0.3021997]
[1745566021735,0.28618656,609.94,607.04,1.65718656]
[1745566021936,0.28618656,609.94,607.05,0.30220057]
[1745566022835,2.14006587,609.81,607.05,0.30220057]
[1745566024237,0.28619598,609.8,607.05,0.30220057]
[1745566024939,2.14006587,609.79,607.05,0.30220057]
[1745566027233,0.28619598,609.8,607.05,0.30220057]
[1745566027234,2.14006587,609.72,607.05,0.30220057]
[1745566027933,2.14006587,609.72,607.04,1.65719598]
[1745566028143,2.14006587,609.72,607.05,0.30216067]
[1745566028336,2.14006587,609.72,607.06,0.30216067]
[1745566028538,2.14006587,609.72,607.07,0.30216067]
[1745566028734,2.14006587,609.72,607.08,0.30216067]
[1745566028932,2.14006587,609.72,607.08,1.428]
[1745566029134,0.28619009,609.71,607.09,0.30216067]
[1745566029334,0.28619009,609.71,607.1,0.30216067]
[1745566029537,0.28619009,609.71,607.11,0.30216067]
[1745566029740,0.28619009,609.71,607.12,0.30216067]
[1745566029938,2.14006587,609.5,607.23,1.03729696]
[1745566030738,2.14006587,609.5,607.24,0.30213197]
[1745566031143,2.14006587,609.5,607.25,0.30213056]
[1745566031343,2.14006587,609.5,607.24,0.30213056]
[1745566032039,2.14006587,609.5,607.25,1.485]
[1745566032237,2.14006587,609.5,607.26,0.30213056]
[1745566032442,0.28619362,609.49,607.28,1.03729696]
[1745566032739,0.28619362,609.49,607.29,0.3021355]
[1745566033644,0.28619362,609.49,607.29,1.6391355]
[1745566033840,2.42625949,609.49,607.3,0.3021355]
[1745566034941,2.14006587,609.49,607.3,0.3021355]
[1745566035246,0.28618774,609.48,607.3,0.3021355]
[1745566037147,0.28618774,609.48,607.29,1.337]
[1745566037345,0.28618774,609.48,607.3,0.30210961]
[1745566037951,2.14006587,609.61,607.3,0.30210961]
[1745566038653,2.14006587,609.78,607.3,0.30210961]
[1745566039350,0.2861348,609.77,607.3,0.30210961]
[1745566041045,2.14006587,609.81,607.3,0.30210961]
[1745566041249,0.28613244,609.76,607.3,0.30210961]
[1745566041752,0.28613244,609.76,607.29,1.337]
[1745566041951,0.28613244,609.76,607.3,0.30210434]
[1745566043354,0.28613244,609.76,607.29,1.337]
[1745566043555,0.28613244,609.76,607.3,0.30210579]
[1745566043955,2.14006587,609.84,607.3,0.30210579]
[1745566044756,2.14006587,609.72,607.3,1.72010579]
[1745566044952,2.14006587,609.72,607.31,0.30210579]
[1745566045257,0.28613832,609.71,607.31,0.30210579]
[1745566046961,2.14006587,609.67,607.31,0.30210579]
[1745566048860,0.28613832,609.7,607.31,0.30210579]
[1745566049958,2.14006587,609.83,607.31,0.30210579]
[1745566050259,0.28612539,609.69,607.31,0.30210579]
[1745566050459,2.14006587,609.83,607.31,0.30210579]
[1745566052062,0.28612539,609.82,607.31,0.30210579]
[1745566052962,2.14006587,609.9,607.31,0.30210579]
[1745566053363,0.28611715,609.81,607.31,0.30210579]
[1745566053560,2.14006587,609.9,607.31,0.30210579]
[1745566054364,0.28611715,609.89,607.31,0.30210579]
[1745566054967,0.28611715,609.89,607.31,1.50110579]
[1745566055164,0.28611715,609.89,607.32,0.30210579]
[1745566055966,2.14006587,609.97,607.32,0.30210579]
[1745566057369,0.28610774,609.96,607.32,0.30210579]
[1745566058971,2.14006587,610.0,607.32,0.30210579]
[1745566060166,2.14006587,609.88,607.32,0.30210579]
[1745566060671,2.14006587,609.88,607.31,1.48510421]
[1745566060864,2.14006587,609.88,607.33,1.706]
[1745566061066,2.14006587,609.88,607.34,0.30210713]
[1745566062269,2.14006587,609.93,607.34,0.30210713]